fUST/lending_fUST_20240427
["ID","MTS","AMOUNT","RATE_DAILY","PERIOD"]
[323664326,1714151456806,-500.0,0.00041917,7]
[323664327,1714151456816,-500.0,0.00041917,7]
[323664328,1714151456825,-500.0,0.00041917,7]
[323664329,1714151456835,-273.238321,0.00041917,7]
[323664330,1714151456844,-273.238321,0.00041917,7]
[323664331,1714151456854,-660.06,0.00041917,7]
[323664332,1714151456864,-151.0,0.00041917,7]
[323664333,1714151456873,-151.0,0.00041917,7]
[323664334,1714151456883,-500.0,0.00041917,7]
[323664335,1714151456892,-4601.83,0.00041917,7]
[323664336,1714151456902,-500.0,0.00041917,7]
[323664337,1714151456911,-500.0,0.00041917,7]
[323664338,1714151456920,-500.0,0.00041917,7]
[323664339,1714151456929,-1006.47,0.00041917,7]
[323664340,1714151456938,-2642.19,0.00041917,7]
[323664341,1714151456947,-1236.95,0.00041917,7]
[323664342,1714151456956,-900.0,0.00041917,7]
[323664343,1714151456966,-500.0,0.00041917,7]
[323664344,1714151456976,-500.0,0.00041917,7]
[323664345,1714151456985,-500.0,0.00041917,7]
[323664346,1714151456995,-500.0,0.00041917,7]
[323664347,1714151457004,-1037.96,0.00041917,7]
[323664348,1714151457017,-1068.89,0.00041917,7]
[323664349,1714151457026,-500.0,0.00041917,7]
[323664350,1714151457035,-500.0,0.00041917,7]
[323664351,1714151457045,-538.99,0.00041917,7]
[323664352,1714151457054,-701.69,0.00041917,7]
[323664353,1714151457066,-501.18104438,0.00041917,7]
[323664354,1714151457076,-3882.5,0.00041917,7]
[323664355,1714151457085,-1351.34,0.00041917,7]
[323664356,1714151457094,-500.0,0.00041917,7]
[323664357,1714151457104,-500.0,0.00041917,7]
[323664358,1714151457114,-500.0,0.00041917,7]
[323664359,1714151457124,-500.0,0.00041917,7]
[323664360,1714151457133,-500.0,0.00041917,7]
[323664361,1714151457143,-1308.8,0.00041917,7]
[323664362,1714151457153,-187.42594818,0.00041917,7]
[323664363,1714151457162,-4129.12,0.00041917,7]
[323664364,1714151457172,-500.0,0.00041917,7]
[323664365,1714151457182,-290.455397,0.00041917,7]
[323664366,1714151457191,-290.455397,0.00041917,7]
[323664367,1714151457200,-500.0,0.00041917,7]
[323664368,1714151457209,-500.0,0.00041917,7]
[323664369,1714151457218,-290.455397,0.00041917,7]
[323664370,1714151457228,-1568.78,0.00041917,7]
[323664371,1714151457239,-290.455397,0.00041917,7]
[323664372,1714151457250,-624.57,0.00041917,7]
[323664373,1714151457261,-500.0,0.00041917,7]
[323664374,1714151457271,-9906.46,0.00041917,7]
[323664375,1714151457280,-500.0,0.00041917,7]
[323664376,1714151457289,-707.43,0.00041917,7]
[323664377,1714151457298,-500.0,0.00041917,7]
[323664378,1714151457307,-500.0,0.00041917,7]
[323664379,1714151457316,-1463.03,0.00041917,7]
[323664380,1714151457328,-500.0,0.00041917,7]
[323664381,1714151457339,-652.39,0.00041917,7]
[323664382,1714151457348,-8370.61,0.00041917,7]
[323664383,1714151457357,-500.0,0.00041917,7]
[323664384,1714151457367,-1240.5,0.00041917,7]
[323664385,1714151457376,-500.0,0.00041917,7]
[323664386,1714151457386,-500.0,0.00041917,7]
[323664387,1714151457397,-500.0,0.00041917,7]
[323664388,1714151457406,-500.0,0.00041917,7]
[323664389,1714151457416,-501.79886455,0.00041917,7]
[323664390,1714151457427,-504.13148911,0.00041917,7]
[323664391,1714151457436,-428.05723714,0.00041917,7]
[323664392,1714151457446,-500.0,0.00041917,7]
[323664393,1714151457455,-500.0,0.00041917,7]
[323664394,1714151457465,-612.68,0.00041917,7]
[323664395,1714151457474,-500.0,0.00041917,7]
[323664396,1714151457484,-448.0,0.00041917,7]
[323664397,1714151457493,-735.34,0.00041917,7]
[323664398,1714151457503,-577.88,0.00041917,7]
[323664399,1714151457512,-500.0,0.00041917,7]
[323664400,1714151457521,-12883.84,0.00041917,7]
[323664401,1714151457530,-10267.73,0.00041917,7]
[323664402,1714151457540,-1671.4,0.00041917,7]
[323664403,1714151457550,-500.0,0.00041917,7]
[323664404,1714151457560,-501.76810961,0.00041917,7]
[323664405,1714151457569,-500.0,0.00041917,7]
[323664406,1714151457578,-500.0,0.00041917,7]
[323664407,1714151457588,-500.0,0.00041917,7]
[323664408,1714151457597,-500.0,0.00041917,7]
[323664409,1714151457606,-500.0,0.00041917,7]
[323664410,1714151457615,-500.0,0.00041917,2]
[323664411,1714151457625,-500.0,0.00041917,7]
[323664412,1714151457635,-5819.34,0.00041917,7]
[323664413,1714151457644,-500.0,0.00041917,7]
[323664414,1714151457654,-500.0,0.00041917,7]
[323664415,1714151457663,-388.79326694,0.00041917,7]
[323664416,1714151457672,-1454.51,0.00041917,7]
[323664417,1714151457683,-500.0,0.00041917,7]
[323664418,1714151457692,-500.0,0.00041917,7]
[323664419,1714151457702,-315.82067884,0.00042,4]
[323664420,1714151457711,-702.0,0.00042,2]
[323664421,1714151457721,-500.0,0.00042191,7]
[323664422,1714151457730,-500.0,0.00042191,7]
[323664423,1714151457741,-500.0,0.00042191,7]
[323664424,1714151457753,-843.21,0.00042191,7]
[323664425,1714151457762,-500.0,0.00042191,3]
[323664426,1714151457771,-500.0,0.00042191,7]
[323664427,1714151457780,-500.0,0.00042191,7]
[323664428,1714151457789,-500.0,0.00042191,7]
[323664429,1714151457797,-500.0,0.00042191,7]
[323664430,1714151457877,-1531.05,0.00042191,120]
[323664431,1714151457888,-333.57849869,0.00042191,7]
[323664432,1714151457898,-500.0,0.00042191,7]
[323664433,1714151457909,-185.48834445,0.00042191,7]
[323664434,1714151457919,-500.0,0.00042191,7]
[323664435,1714151457929,-500.0,0.00042191,7]
[323664436,1714151457939,-1205.42,0.00042191,7]
[323664437,1714151457948,-500.0,0.00042191,7]
[323664438,1714151457958,-500.0,0.00042191,7]
[323664439,1714151457968,-500.0,0.00042191,7]
[323664440,1714151457979,-500.0,0.00042191,7]
[323664441,1714151457989,-500.0,0.00042191,7]
[323664442,1714151457998,-500.0,0.00042191,7]
[323664443,1714151458009,-500.0,0.00042191,7]
[323664444,1714151458021,-500.0,0.00042191,7]
[323664445,1714151458031,-500.0,0.00042191,7]
[323664446,1714151458040,-500.0,0.00042191,7]
[323664447,1714151458050,-500.0,0.00042191,7]
[323664448,1714151458060,-500.0,0.00042191,7]
[323664449,1714151458069,-500.0,0.00042191,7]
[323664450,1714151458079,-603.69392281,0.00042191,7]
[323664451,1714151458088,-500.0,0.00042191,7]
[323664452,1714151458100,-500.0,0.00042191,7]
[323664453,1714151458110,-500.0,0.00042191,7]
[323664454,1714151458120,-1843.11,0.00042191,7]
[323664455,1714151458130,-500.0,0.00042191,7]
[323664456,1714151458140,-1315.36,0.00042191,7]
[323664457,1714151458149,-500.0,0.00042191,7]
[323664458,1714151458159,-390.13788074,0.00042191,7]
[323664459,1714151458168,-500.0,0.00042191,7]
[323664460,1714151458178,-1968.72,0.00042191,7]
[323664461,1714151458188,-500.0,0.00042191,7]
[323664462,1714151458197,-500.0,0.00042191,7]
[323664463,1714151458208,-1326.46,0.00042191,7]
[323664464,1714151458218,-500.0,0.00042191,7]
[323664465,1714151458227,-500.0,0.00042191,7]
[323664466,1714151458236,-203.80177462,0.00042191,7]
[323664467,1714151458247,-500.0,0.00042191,7]
[323664468,1714151458258,-500.0,0.00042191,7]
[323664469,1714151458267,-500.0,0.00042191,7]
[323664470,1714151458277,-500.0,0.00042191,7]
[323664471,1714151458286,-500.0,0.00042191,7]
[323664472,1714151458296,-500.0,0.00042191,7]
[323664473,1714151458306,-500.0,0.00042191,7]
[323664474,1714151458315,-500.0,0.00042191,7]
[323664475,1714151458325,-500.0,0.00042191,7]
[323664476,1714151458334,-1037.26,0.00042191,7]
[323664477,1714151458344,-195.25515677,0.00042191,7]
[323664478,1714151458354,-1749.02,0.00042191,7]
[323664479,1714151458364,-1398.14,0.00042191,7]
[323664480,1714151458373,-500.0,0.00042191,7]
[323664481,1714151458382,-500.0,0.00042191,7]
[323664482,1714151458391,-500.0,0.00042191,7]
[323664483,1714151458401,-500.0,0.00042191,7]
[323664484,1714151458410,-547.54,0.00042191,7]
[323664485,1714151458420,-500.0,0.00042191,7]
[323664486,1714151458428,-2123.78,0.00042191,7]
[323664487,1714151458438,-500.0,0.00042191,7]
[323664488,1714151458447,-500.0,0.00042191,7]
[323664489,1714151458456,-500.0,0.00042191,7]
[323664490,1714151458465,-151.0,0.00042191,7]
[323664491,1714151458474,-151.0,0.00042191,7]
[323664492,1714151458484,-272.84056596,0.00042191,7]
[323664493,1714151458493,-500.0,0.00042191,7]
[323664494,1714151458502,-500.0,0.00042191,7]
[323664495,1714151458511,-500.0,0.00042191,7]
[323664496,1714151458520,-500.0,0.00042191,7]
[323664497,1714151458529,-2561.54,0.00042191,7]
[323664498,1714151458538,-500.0,0.00042191,7]
[323664499,1714151458548,-500.0,0.00042191,7]
[323664500,1714151458557,-500.0,0.00042191,7]
[323664501,1714151458566,-1529.74,0.00042191,7]
[323664502,1714151458575,-1087.6,0.00042191,7]
[323664503,1714151458585,-1398.22,0.00042191,7]
[323664504,1714151458594,-200.0,0.00042191,30]
[323664505,1714151458603,-500.0,0.00042191,7]
[323664506,1714151458612,-1748.44,0.00042191,7]
[323664507,1714151458621,-500.0,0.00042191,7]
[323664508,1714151458631,-500.0,0.00042191,7]
[323664509,1714151458640,-500.0,0.00042191,7]
[323664510,1714151458649,-500.0,0.00042191,7]
[323664511,1714151458658,-5209.22,0.00042191,7]
[323664512,1714151458667,-500.0,0.00042191,7]
[323664513,1714151458676,-500.0,0.00042191,7]
[323664514,1714151458685,-1379.93,0.00042191,7]
[323664515,1714151458694,-500.0,0.00042191,7]
[323664516,1714151458703,-500.0,0.00042191,7]
[323664517,1714151458713,-500.0,0.00042191,7]
[323664518,1714151458722,-835.38,0.00042191,7]
[323664519,1714151458731,-500.0,0.00042191,7]
[323664520,1714151458741,-728.58,0.00042191,7]
[323664521,1714151458750,-999.0,0.00042191,12]
[323664522,1714151458760,-500.0,0.00042191,7]
[323664523,1714151458769,-704.86,0.00042191,7]
[323664524,1714151458779,-379.99085427,0.00042191,7]
[323664525,1714151458788,-1073.4,0.00042191,7]
[323664526,1714151458798,-500.0,0.00042191,7]
[323664527,1714151458807,-500.0,0.00042191,7]
[323664528,1714151458816,-1875.92,0.00042191,7]
[323664529,1714151458825,-500.0,0.00042191,7]
[323664530,1714151458834,-747.19,0.00042191,7]
[323664531,1714151458843,-500.0,0.00042191,7]
[323664532,1714151458852,-500.0,0.00042191,7]
[323664533,1714151458861,-500.0,0.00042191,7]
[323664534,1714151458870,-500.0,0.00042191,7]
[323664535,1714151458878,-500.0,0.00042191,7]
[323664536,1714151458887,-500.0,0.00042191,7]
[323664537,1714151458896,-1963.81,0.00042191,7]
[323664538,1714151458905,-8810.57,0.00042191,7]
[323664539,1714151458915,-500.0,0.00042191,7]
[323664540,1714151458924,-500.0,0.00042191,7]
[323664541,1714151458935,-1211.86,0.00042191,7]
[323664542,1714151458944,-500.0,0.00042191,7]
[323664543,1714151458954,-500.0,0.00042191,7]
[323664544,1714151458964,-500.0,0.00042191,7]
[323664545,1714151458973,-500.0,0.00042191,7]
[323664546,1714151458983,-500.0,0.00042191,7]
[323664547,1714151458997,-560.27195318,0.00042191,7]
[323664548,1714151459007,-6049.81,0.00042191,7]
[323664549,1714151459021,-1108.5,0.00042191,7]
[323664550,1714151459030,-500.0,0.00042191,7]
[323664551,1714151459039,-500.0,0.00042191,7]
[323664552,1714151459048,-273.238321,0.00042191,7]
[323664553,1714151459058,-500.0,0.00042191,7]
[323664554,1714151459067,-500.0,0.00042191,7]
[323664555,1714151459077,-500.0,0.00042191,7]
[323664556,1714151459087,-273.238319,0.00042191,7]
[323664557,1714151459162,-660.06,0.00042191,7]
[323664558,1714151459172,-151.0,0.00042191,7]
[323664559,1714151459182,-500.0,0.00042191,7]
[323664560,1714151459191,-4601.83,0.00042191,7]
[323664561,1714151459202,-500.0,0.00042191,7]
[323664562,1714151459212,-500.0,0.00042191,7]
[323664563,1714151459221,-500.0,0.00042191,7]
[323664564,1714151459230,-1006.47,0.00042191,7]
[323664565,1714151459242,-2642.19,0.00042191,7]
[323664566,1714151459252,-1236.95,0.00042191,7]
[323664567,1714151459263,-900.0,0.00042191,7]
[323664568,1714151459272,-500.0,0.00042191,7]
[323664569,1714151459281,-500.0,0.00042191,7]
[323664570,1714151459290,-500.0,0.00042191,7]
[323664571,1714151459299,-500.0,0.00042191,7]
[323664572,1714151459308,-1037.96,0.00042191,7]
[323664573,1714151459317,-1068.89,0.00042191,7]
[323664574,1714151459327,-500.0,0.00042191,7]
[323664575,1714151459337,-504.50877379,0.00042191,7]
[323664576,1714151459346,-538.99,0.00042191,7]
[323664577,1714151459355,-701.69,0.00042191,7]
[323664578,1714151459364,-3882.5,0.00042191,7]
[323664579,1714151459372,-1351.34,0.00042191,7]
[323664580,1714151459382,-500.0,0.00042191,7]
[323664581,1714151459391,-500.0,0.00042191,7]
[323664582,1714151459401,-500.0,0.00042191,7]
[323664583,1714151459411,-500.0,0.00042191,7]
[323664584,1714151459420,-500.0,0.00042191,7]
[323664585,1714151459429,-1308.8,0.00042191,7]
[323664586,1714151459439,-4129.12,0.00042191,7]
[323664587,1714151459449,-500.0,0.00042191,7]
[323664588,1714151459459,-290.455397,0.00042191,7]
[323664589,1714151459468,-500.0,0.00042191,7]
[323664590,1714151459476,-500.0,0.00042191,7]
[323664591,1714151459486,-1568.78,0.00042191,7]
[323664592,1714151459495,-290.455402,0.00042191,7]
[323664593,1714151459504,-624.57,0.00042191,7]
[323664594,1714151459513,-500.0,0.00042191,7]
[323664595,1714151459522,-9906.46,0.00042191,7]
[323664596,1714151459531,-500.0,0.00042191,7]
[323664597,1714151459541,-707.43,0.00042191,7]
[323664598,1714151459550,-500.0,0.00042191,7]
[323664599,1714151459559,-500.0,0.00042191,7]
[323664600,1714151459569,-1463.03,0.00042191,7]
[323664601,1714151459579,-500.0,0.00042191,7]
[323664602,1714151459589,-8370.61,0.00042191,7]
[323664603,1714151459598,-652.39,0.00042191,7]
[323664604,1714151459607,-500.0,0.00042191,7]
[323664605,1714151459617,-1240.5,0.00042191,7]
[323664606,1714151459627,-500.0,0.00042191,7]
[323664607,1714151459636,-500.0,0.00042191,7]
[323664608,1714151459646,-500.0,0.00042191,7]
[323664609,1714151459655,-500.0,0.00042191,7]
[323664610,1714151459664,-500.0,0.00042191,7]
[323664611,1714151459673,-500.0,0.00042191,7]
[323664612,1714151459683,-612.68,0.00042191,7]
[323664613,1714151459692,-501.56765189,0.00042191,7]
[323664614,1714151459701,-735.34,0.00042191,7]
[323664615,1714151459710,-577.88,0.00042191,7]
[323664616,1714151459719,-500.0,0.00042191,7]
[323664617,1714151459728,-12883.84,0.00042191,7]
[323664618,1714151459740,-10267.73,0.00042191,7]
[323664619,1714151459750,-1671.4,0.00042191,7]
[323664620,1714151459759,-500.0,0.00042191,7]
[323664621,1714151459769,-500.0,0.00042191,7]
[323664622,1714151459778,-500.0,0.00042191,7]
[323664623,1714151459788,-500.0,0.00042191,7]
[323664624,1714151459797,-500.0,0.00042191,7]
[323664625,1714151459808,-500.0,0.00042191,2]
[323664626,1714151459818,-500.0,0.00042191,7]
[323664627,1714151459828,-500.0,0.00042191,7]
[323664628,1714151459839,-5819.34,0.00042191,7]
[323664629,1714151459850,-500.0,0.00042191,7]
[323664630,1714151459859,-500.0,0.00042191,7]
[323664631,1714151459869,-1454.51,0.00042191,7]
[323664632,1714151459879,-498.58172884,0.00042191,7]
[323664633,1714151459888,-500.0,0.00042191,7]
[323664634,1714151459898,-500.0,0.00042465,7]
[323664635,1714151459907,-500.0,0.00042465,7]
[323664636,1714151459917,-457.80205811,0.00042465,7]
[323664637,1714151459926,-843.21,0.00042465,7]
[323664638,1714151459935,-500.0,0.00042465,3]
[323664639,1714151459944,-500.0,0.00042465,7]
[323664640,1714151459953,-500.0,0.00042465,7]
[323664641,1714151459962,-500.0,0.00042465,7]
[323664642,1714151459973,-500.0,0.00042465,7]
[323664643,1714151459982,-1531.05,0.00042465,120]
[323664644,1714151459993,-500.0,0.00042465,7]
[323664645,1714151460003,-500.0,0.00042465,7]
[323664646,1714151460013,-500.0,0.00042465,7]
[323664647,1714151460026,-1205.42,0.00042465,7]
[323664648,1714151460035,-500.0,0.00042465,7]
[323664649,1714151460044,-500.0,0.00042465,7]
[323664650,1714151460055,-437.16723812,0.00042465,7]
[323664651,1714151460065,-500.0,0.00042465,7]
[323664652,1714151460074,-500.0,0.00042465,7]
[323664653,1714151460084,-500.0,0.00042465,7]
[323664654,1714151460094,-624.89915356,0.00042465,7]
[323664655,1714151460104,-500.0,0.00042465,7]
[323664656,1714151460114,-500.0,0.00042465,7]
[323664657,1714151460123,-500.0,0.00042465,7]
[323664658,1714151460132,-500.0,0.00042465,7]
[323664659,1714151460141,-500.0,0.00042465,7]
[323664660,1714151460151,-500.0,0.00042465,7]
[323664661,1714151460160,-500.0,0.00042465,7]
[323664662,1714151460169,-500.0,0.00042465,7]
[323664663,1714151460178,-151.0,0.00042465,7]
[323664664,1714151460187,-500.0,0.00042465,7]
[323664665,1714151460197,-151.0,0.00042465,7]
[323664666,1714151460206,-1843.11,0.00042465,7]
[323664667,1714151460215,-1315.36,0.00042465,7]
[323664668,1714151460224,-500.0,0.00042465,7]
[323664669,1714151460233,-500.0,0.00042465,7]
[323664670,1714151460244,-1968.72,0.00042465,7]
[323664671,1714151460253,-500.0,0.00042465,7]
[323664672,1714151460262,-500.0,0.00042465,7]
[323664673,1714151460272,-151.0,0.00042465,7]
[323664674,1714151460345,-1326.46,0.00042465,7]
[323664675,1714151460356,-500.0,0.00042465,7]
[323664676,1714151460366,-500.0,0.00042465,7]
[323664677,1714151460376,-500.0,0.00042465,7]
[323664678,1714151460386,-500.0,0.00042465,7]
[323664679,1714151460395,-500.0,0.00042465,7]
[323664680,1714151460404,-500.0,0.00042465,7]
[323664681,1714151460414,-500.0,0.00042465,7]
[323664682,1714151460424,-500.0,0.00042465,7]
[323664683,1714151460434,-500.0,0.00042465,7]
[323664684,1714151460443,-500.0,0.00042465,7]
[323664685,1714151460452,-501.32710305,0.00042465,7]
[323664686,1714151460462,-1037.26,0.00042465,7]
[323664687,1714151460471,-1749.02,0.00042465,7]
[323664688,1714151460480,-1398.14,0.00042465,7]
[323664689,1714151460491,-500.0,0.00042465,7]
[323664690,1714151460500,-500.0,0.00042465,7]
[323664691,1714151460509,-500.0,0.00042465,7]
[323664692,1714151460519,-500.0,0.00042465,7]
[323664693,1714151460528,-547.54,0.00042465,7]
[323664694,1714151460538,-500.0,0.00042465,7]
[323664695,1714151460547,-2123.78,0.00042465,7]
[323664696,1714151460557,-500.0,0.00042465,7]
[323664697,1714151460566,-176.22736027,0.00042465,7]
[323664698,1714151460575,-500.0,0.00042465,7]
[323664699,1714151460584,-296.614921,0.00042465,7]
[323664700,1714151460593,-151.0,0.00042465,7]
[323664701,1714151460603,-151.0,0.00042465,7]
[323664702,1714151460612,-500.0,0.00042465,7]
[323664703,1714151460622,-500.0,0.00042465,7]
[323664704,1714151460632,-500.00024164,0.00042465,7]
[323664705,1714151460642,-500.0,0.00042465,7]
[323664706,1714151460651,-2561.54,0.00042465,7]
[323664707,1714151460660,-500.0,0.00042465,7]
[323664708,1714151460670,-500.0,0.00042465,7]
[323664709,1714151460679,-500.0,0.00042465,7]
[323664710,1714151460688,-1529.74,0.00042465,7]
[323664711,1714151460697,-1087.6,0.00042465,7]
[323664712,1714151460706,-1398.22,0.00042465,7]
[323664713,1714151460715,-200.0,0.00042465,30]
[323664714,1714151460726,-500.0,0.00042465,7]
[323664715,1714151460736,-1748.44,0.00042465,7]
[323664716,1714151460747,-500.0,0.00042465,7]
[323664717,1714151460759,-500.0,0.00042465,7]
[323664718,1714151460769,-500.0,0.00042465,7]
[323664719,1714151460778,-500.0,0.00042465,7]
[323664720,1714151460787,-5209.22,0.00042465,7]
[323664721,1714151460797,-500.0,0.00042465,7]
[323664722,1714151460807,-500.0,0.00042465,7]
[323664723,1714151460817,-1379.93,0.00042465,7]
[323664724,1714151460826,-500.0,0.00042465,7]
[323664725,1714151460835,-500.0,0.00042465,7]
[323664726,1714151460845,-500.0,0.00042465,7]
[323664727,1714151460856,-835.38,0.00042465,7]
[323664728,1714151460865,-500.0,0.00042465,7]
[323664729,1714151460875,-728.58,0.00042465,7]
[323664730,1714151460884,-237.14347933,0.00042465,7]
[323664731,1714151460893,-704.86,0.00042465,7]
[323664732,1714151460903,-1073.4,0.00042465,7]
[323664733,1714151460913,-500.0,0.00042465,7]
[323664734,1714151460921,-500.0,0.00042465,7]
[323664735,1714151460930,-1875.92,0.00042465,7]
[323664736,1714151460939,-500.0,0.00042465,7]
[323664737,1714151460949,-747.19,0.00042465,7]
[323664738,1714151460958,-500.0,0.00042465,7]
[323664739,1714151460967,-500.0,0.00042465,7]
[323664740,1714151460976,-182.11937969,0.00042465,7]
[323664741,1714151460986,-500.0,0.00042465,7]
[323664742,1714151460995,-500.0,0.00042465,7]
[323664743,1714151461005,-500.0,0.00042465,7]
[323664744,1714151461016,-1963.81,0.00042465,7]
[323664745,1714151461026,-8810.57,0.00042465,7]
[323664746,1714151461035,-504.22301787,0.00042465,7]
[323664747,1714151461045,-500.0,0.00042465,7]
[323664748,1714151461056,-1211.86,0.00042465,7]
[323664749,1714151461066,-500.0,0.00042465,7]
[323664750,1714151461075,-500.0,0.00042465,7]
[323664751,1714151461083,-500.0,0.00042465,7]
[323664752,1714151461093,-501.05404235,0.00042465,7]
[323664753,1714151461102,-500.0,0.00042465,7]
[323664754,1714151461112,-6049.81,0.00042465,7]
[323664755,1714151461121,-1108.5,0.00042465,7]
[323664756,1714151461130,-500.0,0.00042465,7]
[323664757,1714151461140,-500.0,0.00042465,7]
[323664758,1714151461149,-630.19087872,0.00042465,7]
[323664759,1714151461158,-500.0,0.00042465,7]
[323664760,1714151461167,-500.0,0.00042465,7]
[323664761,1714151461177,-660.06,0.00042465,7]
[323664762,1714151461186,-500.0,0.00042465,7]
[323664763,1714151461196,-4601.83,0.00042465,7]
[323664764,1714151461205,-500.0,0.00042465,7]
[323664765,1714151461214,-500.0,0.00042465,7]
[323664766,1714151461224,-500.0,0.00042465,7]
[323664767,1714151461233,-1006.47,0.00042465,7]
[323664768,1714151461244,-2642.19,0.00042465,7]
[323664769,1714151461253,-1236.95,0.00042465,7]
[323664770,1714151461263,-900.0,0.00042465,7]
[323664771,1714151461273,-500.0,0.00042465,7]
[323664772,1714151461282,-500.0,0.00042465,7]
[323664773,1714151461292,-500.0,0.00042465,7]
[323664774,1714151461302,-500.0,0.00042465,7]
[323664775,1714151461311,-1037.96,0.00042465,7]
[323664776,1714151461320,-1068.89,0.00042465,7]
[323664777,1714151461330,-500.0,0.00042465,7]
[323664778,1714151461339,-538.99,0.00042465,7]
[323664779,1714151461348,-701.69,0.00042465,7]
[323664780,1714151461358,-3882.5,0.00042465,7]
[323664781,1714151461367,-1351.34,0.00042465,7]
[323664782,1714151461440,-500.0,0.00042465,7]
[323664783,1714151461450,-500.0,0.00042465,7]
[323664784,1714151461459,-500.0,0.00042465,7]
[323664785,1714151461468,-500.0,0.00042465,7]
[323664786,1714151461477,-500.0,0.00042465,7]
[323664787,1714151461487,-1308.8,0.00042465,7]
[323664788,1714151461496,-4129.12,0.00042465,7]
[323664789,1714151461506,-500.0,0.00042465,7]
[323664790,1714151461515,-500.0,0.00042465,7]
[323664791,1714151461525,-500.0,0.00042465,7]
[323664792,1714151461535,-1568.78,0.00042465,7]
[323664793,1714151461544,-624.57,0.00042465,7]
[323664794,1714151461553,-500.0,0.00042465,7]
[323664795,1714151461562,-9906.46,0.00042465,7]
[323664796,1714151461572,-500.0,0.00042465,7]
[323664797,1714151461581,-707.43,0.00042465,7]
[323664798,1714151461591,-500.0,0.00042465,7]
[323664799,1714151461600,-500.0,0.00042465,7]
[323664800,1714151461609,-1463.03,0.00042465,7]
[323664801,1714151461619,-500.0,0.00042465,7]
[323664802,1714151461629,-8370.61,0.00042465,7]
[323664803,1714151461639,-652.39,0.00042465,7]
[323664804,1714151461648,-500.0,0.00042465,7]
[323664805,1714151461658,-1240.5,0.00042465,7]
[323664806,1714151461668,-500.0,0.00042465,7]
[323664807,1714151461678,-500.0,0.00042465,7]
[323664808,1714151461687,-500.0,0.00042465,7]
[323664809,1714151461696,-500.0,0.00042465,7]
[323664810,1714151461706,-500.0,0.00042465,7]
[323664811,1714151461715,-500.0,0.00042465,7]
[323664812,1714151461724,-612.68,0.00042465,7]
[323664813,1714151461734,-735.34,0.00042465,7]
[323664814,1714151461745,-577.88,0.00042465,7]
[323664815,1714151461755,-501.88601853,0.00042465,7]
[323664816,1714151461764,-12883.84,0.00042465,7]
[323664817,1714151461773,-10267.73,0.00042465,7]
[323664818,1714151461783,-1671.4,0.00042465,7]
[323664819,1714151461794,-500.0,0.00042465,7]
[323664820,1714151461803,-500.0,0.00042465,7]
[323664821,1714151461813,-500.8354819,0.00042465,7]
[323664822,1714151461823,-500.0,0.00042465,7]
[323664823,1714151461832,-500.0,0.00042465,7]
[323664824,1714151461841,-500.0,0.00042465,2]
[323664825,1714151461850,-500.0,0.00042465,7]